[Event "European Online Club-ch-A 2021"]
[Site "Online"]
[Date "2021.03.27"]
[Round "4.19"]
[White "Timofeev, Artyom"]
[Black "Marin, Mihail"]
[Result "1/2-1/2"]
[ECO "E14"]
[WhiteElo "2594"]
[BlackElo "2502"]
[Annotator "ChessBase"]
[PlyCount "153"]
[EventDate "2021.03.27"]
[EventType "team-tourn"]
[EventCountry "NET"]
[SourceTitle "playchess.com"]
[Source "ChessBase"]
[SourceQuality "1"]
[TimeControl "900+5"]

1. d4 {[%emt 0:00:00]} Nf6 {[%emt 0:00:05]} 2. c4 {[%emt 0:00:03]} e6 {[%emt 0:00:04]} 3. e3 {[%emt 0:00:15]} b6 {[%emt 0:00:18]} 4. Bd3 {[%emt 0:00:10]} Bb7 {[%emt 0:00:05]} 5. Nf3 {[%emt 0:00:03]} Be7 {[%emt 0:00:14]} 6. Nc3 {[%emt 0:00:09]} d5 {[%emt 0:00:03]} 7. O-O {[%emt 0:00:06]} O-O {[%emt 0:00:03]} 8. cxd5 {[%emt 0:00:37]} exd5 {[%emt 0:00:05]} 9. Ne5 {[%emt 0:00:07]} c5 {[%emt 0:00:07]} 10. Bd2 {[%emt 0:00:24]} Nc6 {[%emt 0:00:13]} 11. Nxc6 {[%emt 0:00:05]} Bxc6 {[%emt 0:00:02]} 12. dxc5 {[%emt 0:00:11]} bxc5 {[%emt 0:00:03]} 13. Rc1 {[%emt 0:00:03]} Qb6 {[%emt 0:00:59]} 14. b3 {[%emt 0:00:05]} Rad8 {[%emt 0:00:15]} 15. Qc2 {[%emt 0:00:06]} Rfe8 {[%emt 0:00:24]} 16. Rfd1 {[%emt 0:00:23]} Qb7 {[%emt 0:00:12]} 17. Bf1 {[%emt 0:00:31]} d4 {[%emt 0:01:06]} 18. Na4 {[%emt 0:00:07]} d3 {[%emt 0:01:09]} 19. Qc4 {[%emt 0:00:28]} Ne4 {[%emt 0:00:30]} 20. Nc3 {[%emt 0:00:06]} Bf8 {[%emt 0:00:50]} 21. Nxe4 {[%emt 0:00:31]} Rxe4 {[%emt 0:00:05]} 22. Qc3 {[%emt 0:00:02]} Rg4 {[%emt 0:00:33]} 23. g3 {[%emt 0:00:03]} Bf3 {[%emt 0:00:47]} 24. Re1 {[%emt 0:00:04]} Qd5 {[%emt 0:00:23]} 25. Qa5 {[%emt 0:00:36]} Rd7 {[%emt 0:00:30]} 26. Qb5 {[%emt 0:00:22]} Rh4 {[%emt 0:01:58]} 27. Rc4 {[%emt 0:00:37]} Rxc4 {[%emt 0:00:26]} 28. bxc4 {[%emt 0:00:07]} Qe6 {[%emt 0:00:17]} 29. e4 {[%emt 0:00:16]} a6 {[%emt 0:00:53]} 30. Qb3 {[%emt 0:00:06]} g5 {[%emt 0:01:45]} 31. Bxg5 {[%emt 0:00:22]} Qg4 {[%emt 0:00:21]} 32. Bd2 {[%emt 0:00:53]} Bxe4 {[%emt 0:00:14]} 33. Bg2 {[%emt 0:00:46]} Bxg2 {[%emt 0:00:11]} 34. Kxg2 {[%emt 0:00:01]} Qd4 {[%emt 0:00:03]} 35. Qc3 {[%emt 0:01:39]} Qxc3 {[%emt 0:00:32]} 36. Bxc3 {[%emt 0:00:03]} f5 {[%emt 0:00:16]} 37. Bd2 {[%emt 0:00:44]} Bg7 {[%emt 0:00:09]} 38. Kf3 {[%emt 0:00:04]} Kf7 {[%emt 0:00:08]} 39. Rb1 {[%emt 0:00:10]} Be5 {[%emt 0:00:20]} 40. Ke3 {[%emt 0:00:29]} Bd4+ {[%emt 0:00:11]} 41. Kxd3 {[%emt 0:00:11]} Bxf2+ {[%emt 0:00:05]} 42. Ke2 {[%emt 0:00:02]} Bd4 {[%emt 0:00:04]} 43. Bf4 {[%emt 0:00:04]} Bc3 {[%emt 0:00:23]} 44. Rb3 {[%emt 0:00:15]} Re7+ {[%emt 0:00:18]} 45. Kd3 {[%emt 0:01:59]} Bd4 {[%emt 0:00:03]} 46. Rb6 {[%emt 0:00:06]} Re1 {[%emt 0:00:13]} 47. Rxa6 {[%emt 0:00:08]} Rd1+ {[%emt 0:00:12]} 48. Ke2 {[%emt 0:00:15]} Rg1 {[%emt 0:00:08]} 49. h4 {[%emt 0:01:07]} Rg2+ {[%emt 0:00:03]} 50. Kd3 {[%emt 0:00:01]} Bf2 {[%emt 0:00:11]} 51. Ra7+ {[%emt 0:00:02]} Kg6 {[%emt 0:00:06]} 52. Be5 {[%emt 0:00:04]} Kh6 {[%emt 0:00:18]} 53. Rg7 {[%emt 0:01:43]} f4 {[%emt 0:00:04]} 54. g4 {[%emt 0:00:03]} Bxh4 {[%emt 0:00:09]} 55. Rg8 {[%emt 0:00:44]} Bg5 {[%emt 0:00:08]} 56. Bg7+ {[%emt 0:00:06]} Kg6 {[%emt 0:00:02]} 57. Be5+ {[%emt 0:00:05]} Kh6 {[%emt 0:00:02]} 58. Ke4 {[%emt 0:00:40]} Rxg4 {[%emt 0:00:12]} 59. Kf5 {[%emt 0:00:03]} Rg3 {[%emt 0:00:04]} 60. a4 {[%emt 0:00:03]} Kh5 {[%emt 0:00:05]} 61. a5 {[%emt 0:00:07]} h6 {[%emt 0:00:03]} 62. a6 {[%emt 0:00:13]} Ra3 {[%emt 0:00:03]} 63. Bxf4 {[%emt 0:00:08]} Bxf4 {[%emt 0:00:05]} 64. Kxf4 {[%emt 0:00:01]} Rxa6 {[%emt 0:00:02]} 65. Rc8 {[%emt 0:00:02]} Rf6+ {[%emt 0:00:08]} 66. Ke5 {[%emt 0:00:07]} Kg5 {[%emt 0:00:06]} 67. Rxc5 {[%emt 0:00:05]} Rf5+ {[%emt 0:00:08]} 68. Kd6 {[%emt 0:00:05]} Rxc5 {[%emt 0:00:02]} 69. Kxc5 {[%emt 0:00:02]} h5 {[%emt 0:00:02]} 70. Kb6 {[%emt 0:00:02]} h4 {[%emt 0:00:03]} 71. c5 {[%emt 0:00:02]} h3 {[%emt 0:00:02]} 72. c6 {[%emt 0:00:01]} h2 {[%emt 0:00:02]} 73. c7 {[%emt 0:00:01]} h1=Q {[%emt 0:00:02]} 74. c8=Q {[%emt 0:00:02]} Qb1+ {[%emt 0:00:03]} 75. Kc7 {[%emt 0:00:02]} Qc2+ {[%emt 0:00:01]} 76. Kb8 {[%emt 0:00:02]} Qxc8+ {[%emt 0:00:02]} 77. Kxc8 {[%emt 0:00:01]} 1/2-1/2

[Event "European Online Club-ch-A 2021"]
[Site "Online"]
[Date "2021.03.27"]
[Round "4.20"]
[White "Costachi, Mihnea"]
[Black "Sharafiev, Azat"]
[Result "0-1"]
[ECO "E75"]
[WhiteElo "2471"]
[BlackElo "2432"]
[Annotator "ChessBase"]
[PlyCount "70"]
[EventDate "2021.03.27"]
[EventType "team-tourn"]
[EventCountry "NET"]
[SourceTitle "playchess.com"]
[Source "ChessBase"]
[SourceQuality "1"]
[TimeControl "900+5"]

1. d4 {[%emt 0:00:00]} Nf6 {[%emt 0:00:03]} 2. c4 {[%emt 0:00:03]} g6 {[%emt 0:00:01]} 3. Nc3 {[%emt 0:00:02]} Bg7 {[%emt 0:00:03]} 4. e4 {[%emt 0:00:01]} d6 {[%emt 0:00:02]} 5. Be2 {[%emt 0:00:01]} O-O {[%emt 0:00:07]} 6. Bg5 {[%emt 0:00:03]} h6 {[%emt 0:00:03]} 7. Be3 {[%emt 0:00:02]} c5 {[%emt 0:00:02]} 8. d5 {[%emt 0:00:02]} e6 {[%emt 0:00:01]} 9. Nf3 {[%emt 0:00:02]} exd5 {[%emt 0:00:07]} 10. cxd5 {[%emt 0:00:01]} Ng4 {[%emt 0:01:33]} 11. Bf4 {[%emt 0:00:04]} Re8 {[%emt 0:00:09]} 12. Nd2 {[%emt 0:01:44]} Ne5 {[%emt 0:00:52]} 13. O-O {[%emt 0:00:04]} b6 {[%emt 0:00:30]} 14. Bg3 {[%emt 0:00:07]} Ba6 {[%emt 0:01:04]} 15. Nb5 {[%emt 0:00:14]} g5 {[%emt 0:00:42]} 16. a4 {[%emt 0:00:24]} Bxb5 {[%emt 0:01:05]} 17. axb5 {[%emt 0:00:10]} Ng6 {[%emt 0:00:01]} 18. Qc2 {[%emt 0:00:14]} Nf4 {[%emt 0:00:09]} 19. Bxf4 {[%emt 0:00:42]} gxf4 {[%emt 0:00:02]} 20. Nc4 {[%emt 0:00:01]} Be5 {[%emt 0:01:10]} 21. Bg4 {[%emt 0:00:26]} Nd7 {[%emt 0:00:26]} 22. Qe2 {[%emt 0:00:23]} Nf6 {[%emt 0:00:56]} 23. Bf5 {[%emt 0:00:08]} Kh8 {[%emt 0:03:31]} 24. Ra3 {[%emt 0:00:22]} Rg8 {[%emt 0:00:14]} 25. Rfa1 {[%emt 0:00:17]} Qc7 {[%emt 0:00:50]} 26. Kh1 {[%emt 0:04:02]} Rg5 {[%emt 0:00:13]} 27. Bh3 {[%emt 0:00:05]} Bd4 {[%emt 0:00:56]} 28. Qf3 {[%emt 0:03:38]} Qe7 {[%emt 0:00:08]} 29. Bf5 {[%emt 0:00:11]} Nxd5 {[%emt 0:02:11]} 30. e5 {[%emt 0:00:03]} Rxf5 {[%emt 0:00:06]} 31. Qxd5 {[%emt 0:00:02]} Rf8 {[%emt 0:00:13]} 32. Rxa7 {[%emt 0:00:26]} Rxe5 {[%emt 0:00:05]} 33. Nxe5 {[%emt 0:01:38]} Qxe5 {[%emt 0:00:02]} 34. Qxe5+ {[%emt 0:00:01]} dxe5 {[%emt 0:00:01]} 35. Ra8 {[%emt 0:01:00]} Kg7 {[%emt 0:00:02]} 0-1

[Event "European Online Club-ch-A 2021"]
[Site "Online"]
[Date "2021.03.27"]
[Round "5.1"]
[White "Deac, Bogdan-Daniel"]
[Black "Horvath, Laszlo"]
[Result "1-0"]
[ECO "A01"]
[WhiteElo "2625"]
[BlackElo "2183"]
[Annotator "ChessBase"]
[PlyCount "49"]
[EventDate "2021.03.27"]
[EventType "team-tourn"]
[EventCountry "NET"]
[SourceTitle "playchess.com"]
[Source "ChessBase"]
[SourceQuality "1"]
[TimeControl "900+5"]

1. b3 {[%emt 0:00:00]} e5 {[%emt 0:00:24]} 2. Bb2 {[%emt 0:00:03]} Nc6 {[%emt 0:00:04]} 3. e3 {[%emt 0:00:03]} d5 {[%emt 0:00:04]} 4. Nf3 {[%emt 0:00:22]} Bd6 {[%emt 0:00:06]} 5. Bb5 {[%emt 0:01:15]} f6 {[%emt 0:00:06]} 6. c4 {[%emt 0:00:33]} dxc4 {[%emt 0:00:55]} 7. bxc4 {[%emt 0:00:18]} Bd7 {[%emt 0:00:11]} 8. O-O {[%emt 0:00:28]} Nh6 {[%emt 0:00:41]} 9. d4 {[%emt 0:00:19]} exd4 {[%emt 0:00:05]} 10. exd4 {[%emt 0:00:06]} Nf7 {[%emt 0:02:19]} 11. Re1+ {[%emt 0:01:17]} Kf8 {[%emt 0:00:38]} 12. Nbd2 {[%emt 0:01:35]} a6 {[%emt 0:02:20]} 13. Ba4 {[%emt 0:00:05]} Ne7 {[%emt 0:00:46]} 14. Bb3 {[%emt 0:00:25]} Bf5 {[%emt 0:01:23]} 15. Ne4 {[%emt 0:00:17]} Qd7 {[%emt 0:00:38]} 16. d5 {[%emt 0:00:25]} Bxe4 {[%emt 0:00:14]} 17. Rxe4 {[%emt 0:00:03]} Re8 {[%emt 0:00:07]} 18. Nd4 {[%emt 0:00:57]} Ng5 {[%emt 0:00:14]} 19. Re3 {[%emt 0:00:03]} Ng6 {[%emt 0:00:23]} 20. Ne6+ {[%emt 0:01:54]} Nxe6 {[%emt 0:00:07]} 21. dxe6 {[%emt 0:00:03]} Qe7 {[%emt 0:00:15]} 22. Qf3 {[%emt 0:00:21]} Ne5 {[%emt 0:00:12]} 23. Bxe5 {[%emt 0:00:03]} Bc5 {[%emt 0:00:31]} 24. Ree1 {[%emt 0:00:15]} Qxe6 {[%emt 0:00:03]} 25. Bc3 {[%emt 0:00:03]} 1-0

[Event "European Online Club-ch-A 2021"]
[Site "Online"]
[Date "2021.03.27"]
[Round "5.2"]
[White "Krieger, Markus"]
[Black "Istratescu, Andrei"]
[Result "0-1"]
[ECO "B23"]
[WhiteElo "2050"]
[BlackElo "2553"]
[Annotator "ChessBase"]
[PlyCount "54"]
[EventDate "2021.03.27"]
[EventType "team-tourn"]
[EventCountry "NET"]
[SourceTitle "playchess.com"]
[Source "ChessBase"]
[SourceQuality "1"]
[TimeControl "900+5"]

1. e4 {[%emt 0:00:00]} c5 {[%emt 0:00:04]} 2. Nc3 {[%emt 0:00:03]} Nc6 {[%emt 0:00:03]} 3. Bb5 {[%emt 0:00:07]} g6 {[%emt 0:00:11]} 4. Bxc6 {[%emt 0:00:03]} bxc6 {[%emt 0:00:03]} 5. d3 {[%emt 0:00:00]} Bg7 {[%emt 0:00:03]} 6. f4 {[%emt 0:00:02]} d6 {[%emt 0:00:03]} 7. Nf3 {[%emt 0:00:02]} Nf6 {[%emt 0:00:04]} 8. O-O {[%emt 0:00:04]} O-O {[%emt 0:00:02]} 9. Qe1 {[%emt 0:00:04]} Ne8 {[%emt 0:00:23]} 10. Be3 {[%emt 0:00:23]} f5 {[%emt 0:00:09]} 11. e5 {[%emt 0:00:26]} Nc7 {[%emt 0:00:09]} 12. Rd1 {[%emt 0:00:24]} Kh8 {[%emt 0:00:27]} 13. Qh4 {[%emt 0:00:35]} Be6 {[%emt 0:00:05]} 14. Rde1 {[%emt 0:00:32]} Bg8 {[%emt 0:00:03]} 15. Bf2 {[%emt 0:00:45]} Ne6 {[%emt 0:00:11]} 16. Ng5 {[%emt 0:00:33]} Nxg5 {[%emt 0:00:03]} 17. Qxg5 {[%emt 0:00:03]} Rb8 {[%emt 0:00:10]} 18. Nd1 {[%emt 0:00:30]} Re8 {[%emt 0:00:15]} 19. Bh4 {[%emt 0:00:29]} dxe5 {[%emt 0:00:17]} 20. fxe5 {[%emt 0:00:05]} c4 {[%emt 0:00:02]} 21. dxc4 {[%emt 0:00:40]} Bxc4 {[%emt 0:00:27]} 22. Rf2 {[%emt 0:01:17]} Be6 {[%emt 0:00:14]} 23. Rd2 {[%emt 0:00:15]} Qa5 {[%emt 0:00:09]} 24. a3 {[%emt 0:00:24]} h6 {[%emt 0:00:17]} 25. Qe3 {[%emt 0:00:06]} g5 {[%emt 0:00:02]} 26. Bf2 {[%emt 0:00:04]} f4 {[%emt 0:00:07]} 27. Qxa7 {[%emt 0:00:12]} Qxd2 {[%emt 0:00:04]} 0-1

[Event "European Online Club-ch-A 2021"]
[Site "Online"]
[Date "2021.03.27"]
[Round "5.3"]
[White "Marin, Mihail"]
[Black "Ferster, Fabian"]
[Result "1-0"]
[ECO "D78"]
[WhiteElo "2502"]
[BlackElo "2149"]
[Annotator "ChessBase"]
[PlyCount "149"]
[EventDate "2021.03.27"]
[EventType "team-tourn"]
[EventCountry "NET"]
[SourceTitle "playchess.com"]
[Source "ChessBase"]
[SourceQuality "1"]
[TimeControl "900+5"]

1. d4 {[%emt 0:00:00]} Nf6 {[%emt 0:00:03]} 2. Nf3 {[%emt 0:00:02]} g6 {[%emt 0:00:04]} 3. g3 {[%emt 0:00:03]} Bg7 {[%emt 0:00:03]} 4. Bg2 {[%emt 0:00:01]} O-O {[%emt 0:00:03]} 5. O-O {[%emt 0:00:02]} d5 {[%emt 0:00:08]} 6. Nbd2 {[%emt 0:00:08]} c6 {[%emt 0:00:29]} 7. c4 {[%emt 0:00:03]} Re8 {[%emt 0:00:09]} 8. b3 {[%emt 0:00:06]} Bg4 {[%emt 0:01:01]} 9. h3 {[%emt 0:00:10]} Bxf3 {[%emt 0:00:02]} 10. Nxf3 {[%emt 0:00:11]} Nbd7 {[%emt 0:00:12]} 11. Bb2 {[%emt 0:00:04]} a5 {[%emt 0:02:39]} 12. Qc2 {[%emt 0:01:21]} a4 {[%emt 0:00:18]} 13. Rab1 {[%emt 0:00:31]} axb3 {[%emt 0:01:34]} 14. axb3 {[%emt 0:00:04]} Ra2 {[%emt 0:00:39]} 15. Ra1 {[%emt 0:00:04]} Rxa1 {[%emt 0:00:07]} 16. Rxa1 {[%emt 0:00:03]} Qb6 {[%emt 0:00:04]} 17. e3 {[%emt 0:01:21]} Ne4 {[%emt 0:01:25]} 18. Ne1 {[%emt 0:00:28]} e5 {[%emt 0:00:48]} 19. dxe5 {[%emt 0:00:52]} Nxe5 {[%emt 0:00:09]} 20. cxd5 {[%emt 0:00:15]} cxd5 {[%emt 0:00:06]} 21. Bd4 {[%emt 0:00:33]} Qc6 {[%emt 0:00:14]} 22. Qb2 {[%emt 0:00:16]} f6 {[%emt 0:00:45]} 23. Rc1 {[%emt 0:00:21]} Qd7 {[%emt 0:00:37]} 24. Rd1 {[%emt 0:00:07]} Qb5 {[%emt 0:00:12]} 25. Bf1 {[%emt 0:03:10]} Qb4 {[%emt 0:00:32]} 26. Nd3 {[%emt 0:00:52]} Qd6 {[%emt 0:01:38]} 27. Bg2 {[%emt 0:00:22]} Nc6 {[%emt 0:00:57]} 28. Nf4 {[%emt 0:00:21]} Nxd4 {[%emt 0:01:27]} 29. Qxd4 {[%emt 0:00:06]} f5 {[%emt 0:00:16]} 30. Qxd5+ {[%emt 0:00:05]} Qxd5 {[%emt 0:00:03]} 31. Nxd5 {[%emt 0:00:31]} Ra8 {[%emt 0:00:12]} 32. Bxe4 {[%emt 0:00:39]} fxe4 {[%emt 0:00:03]} 33. Nc7 {[%emt 0:00:04]} Rc8 {[%emt 0:00:37]} 34. Rd7 {[%emt 0:00:16]} Be5 {[%emt 0:00:04]} 35. Nd5 {[%emt 0:00:23]} Rc5 {[%emt 0:00:03]} 36. Nf4 {[%emt 0:01:26]} Bxf4 {[%emt 0:00:07]} 37. gxf4 {[%emt 0:00:02]} Rb5 {[%emt 0:00:00]} 38. Rd4 {[%emt 0:00:07]} Rxb3 {[%emt 0:00:03]} 39. Rxe4 {[%emt 0:00:02]} Rb1+ {[%emt 0:00:10]} 40. Kg2 {[%emt 0:00:03]} Kf7 {[%emt 0:00:02]} 41. Rc4 {[%emt 0:00:02]} h5 {[%emt 0:00:02]} 42. Rc7+ {[%emt 0:00:07]} Kf6 {[%emt 0:00:02]} 43. h4 {[%emt 0:00:02]} b5 {[%emt 0:00:02]} 44. Rb7 {[%emt 0:00:03]} b4 {[%emt 0:00:01]} 45. Kf3 {[%emt 0:00:02]} b3 {[%emt 0:00:02]} 46. Rb6+ {[%emt 0:00:02]} Kf7 {[%emt 0:00:04]} 47. Ke4 {[%emt 0:00:08]} b2 {[%emt 0:00:08]} 48. Ke5 {[%emt 0:00:26]} Kg7 {[%emt 0:00:28]} 49. Rb7+ {[%emt 0:00:09]} Kh6 {[%emt 0:00:02]} 50. Kf6 {[%emt 0:00:14]} Rh1 {[%emt 0:00:06]} 51. Rxb2 {[%emt 0:00:04]} Rxh4 {[%emt 0:00:03]} 52. Rb8 {[%emt 0:00:04]} Kh7 {[%emt 0:00:02]} 53. f5 {[%emt 0:00:43]} gxf5 {[%emt 0:00:06]} 54. Kxf5 {[%emt 0:00:02]} Rh2 {[%emt 0:00:05]} 55. f4 {[%emt 0:00:03]} h4 {[%emt 0:00:01]} 56. Kg4 {[%emt 0:00:04]} h3 {[%emt 0:00:06]} 57. Re8 {[%emt 0:00:09]} Kg6 {[%emt 0:00:07]} 58. Rh8 {[%emt 0:00:13]} Rg2+ {[%emt 0:00:08]} 59. Kxh3 {[%emt 0:00:08]} Re2 {[%emt 0:00:01]} 60. Re8 {[%emt 0:00:02]} Kf7 {[%emt 0:00:02]} 61. Re5 {[%emt 0:00:03]} Kf6 {[%emt 0:00:02]} 62. Kg3 {[%emt 0:00:02]} Re1 {[%emt 0:00:02]} 63. Kf3 {[%emt 0:00:02]} Rf1+ {[%emt 0:00:02]} 64. Ke4 {[%emt 0:00:02]} Rd1 {[%emt 0:00:02]} 65. Rd5 {[%emt 0:00:04]} Ra1 {[%emt 0:00:03]} 66. Rd6+ {[%emt 0:00:02]} Ke7 {[%emt 0:00:02]} 67. Rb6 {[%emt 0:00:03]} Ra3 {[%emt 0:00:03]} 68. f5 {[%emt 0:00:02]} Kf7 {[%emt 0:00:02]} 69. Kf4 {[%emt 0:00:02]} Ke7 {[%emt 0:00:08]} 70. e4 {[%emt 0:00:03]} Ra4 {[%emt 0:00:03]} 71. f6+ {[%emt 0:00:09]} Kf7 {[%emt 0:00:02]} 72. Kf5 {[%emt 0:00:03]} Ra5+ {[%emt 0:00:04]} 73. e5 {[%emt 0:00:03]} Ra1 {[%emt 0:00:00]} 74. Rb7+ {[%emt 0:00:02]} Kf8 {[%emt 0:00:03]} 75. Rb8+ {[%emt 0:00:02]} 1-0

[Event "European Online Club-ch-A 2021"]
[Site "Online"]
[Date "2021.03.27"]
[Round "5.4"]
[White "Weissenhofer, Jonas"]
[Black "Arkell, Keith C"]
[Result "0-1"]
[ECO "B13"]
[WhiteElo "1719"]
[BlackElo "2381"]
[Annotator "NA"]
[PlyCount "46"]
[EventDate "2021.03.27"]
[EventType "team-tourn"]
[EventCountry "NET"]
[SourceTitle "playchess.com"]
[Source "ChessBase"]
[SourceQuality "1"]
[TimeControl "900+5"]

1. e4 {[%emt 0:00:03]} c6 {[%emt 0:00:24]} 2. d4 {[%emt 0:00:03]} d5 {[%emt 0:00:03]} 3. exd5 {[%emt 0:00:02]} cxd5 {[%emt 0:00:02]} 4. Bd3 {[%emt 0:00:01]} Nc6 {[%emt 0:00:02]} 5. c3 {[%emt 0:00:02]} Nf6 {[%emt 0:00:02]} 6. Bf4 {[%emt 0:00:02]} Bg4 {[%emt 0:00:04]} 7. Qb3 {[%emt 0:00:02]} Qd7 {[%emt 0:00:02]} 8. Nd2 {[%emt 0:00:03]} e6 {[%emt 0:00:02]} 9. Ngf3 {[%emt 0:00:03]} Bxf3 {[%emt 0:00:12]} 10. Nxf3 {[%emt 0:00:02]} Bd6 {[%emt 0:00:01]} 11. Bxd6 {[%emt 0:00:05]} Qxd6 {[%emt 0:00:02]} 12. O-O {[%emt 0:00:20]} O-O {[%emt 0:00:06]} 13. Rae1 {[%emt 0:00:20]} Qc7 {[%emt 0:00:11]} 14. Ne5 {[%emt 0:02:35]} Nxe5 {[%emt 0:00:21]} 15. Rxe5 {[%emt 0:00:14]} Rab8 {[%emt 0:00:36]} 16. f4 {[%emt 0:02:12]} g6 {[%emt 0:00:07]} 17. Qc2 {[%emt 0:02:35]} b5 {[%emt 0:00:07]} 18. f5 {[%emt 0:02:25]} Ng4 {[%emt 0:01:59]} 19. fxe6 {[%emt 0:04:46]} fxe6 {[%emt 0:02:25]} 20. Rxf8+ {[%emt 0:00:37]} Rxf8 {[%emt 0:00:08]} 21. Bxg6 {[%emt 0:00:04]} Nxe5 {[%emt 0:00:17]} 22. dxe5 {[%emt 0:00:05]} Qb6+ {[%emt 0:00:19]} 23. Kh1 {[%emt 0:00:04]} Rf1# {[%emt 0:00:03]} 0-1

[Event "European Online Club-ch-A 2021"]
[Site "Online"]
[Date "2021.03.27"]
[Round "5.6"]
[White "Kamsky, Gata"]
[Black "Nemeth, Miklos"]
[Result "0-1"]
[ECO "C91"]
[WhiteElo "2665"]
[BlackElo "2488"]
[Annotator "ChessBase"]
[PlyCount "140"]
[EventDate "2021.03.27"]
[EventType "team-tourn"]
[EventCountry "NET"]
[SourceTitle "playchess.com"]
[Source "ChessBase"]
[SourceQuality "1"]
[TimeControl "900+5"]

1. e4 {[%emt 0:00:00]} e5 {[%emt 0:00:04]} 2. Nf3 {[%emt 0:00:03]} Nc6 {[%emt 0:00:03]} 3. Bb5 {[%emt 0:00:02]} a6 {[%emt 0:00:09]} 4. Ba4 {[%emt 0:00:01]} Nf6 {[%emt 0:00:03]} 5. O-O {[%emt 0:00:02]} Be7 {[%emt 0:00:07]} 6. Re1 {[%emt 0:00:06]} b5 {[%emt 0:00:03]} 7. Bb3 {[%emt 0:00:01]} d6 {[%emt 0:00:02]} 8. c3 {[%emt 0:00:03]} O-O {[%emt 0:00:03]} 9. d4 {[%emt 0:00:02]} Bg4 {[%emt 0:00:04]} 10. d5 {[%emt 0:00:02]} Nb8 {[%emt 0:00:43]} 11. h3 {[%emt 0:00:13]} Bh5 {[%emt 0:00:28]} 12. Nbd2 {[%emt 0:00:16]} c5 {[%emt 0:00:36]} 13. dxc6 {[%emt 0:00:45]} Nxc6 {[%emt 0:00:07]} 14. Nf1 {[%emt 0:00:04]} Na5 {[%emt 0:00:10]} 15. Bc2 {[%emt 0:00:09]} Re8 {[%emt 0:01:10]} 16. Ng3 {[%emt 0:00:05]} Bg6 {[%emt 0:00:02]} 17. a4 {[%emt 0:01:01]} Qb6 {[%emt 0:00:59]} 18. Nh4 {[%emt 0:00:25]} b4 {[%emt 0:01:28]} 19. cxb4 {[%emt 0:02:41]} Nc6 {[%emt 0:00:21]} 20. b5 {[%emt 0:00:38]} axb5 {[%emt 0:00:08]} 21. Be3 {[%emt 0:00:37]} Qb7 {[%emt 0:01:14]} 22. Nxg6 {[%emt 0:00:32]} hxg6 {[%emt 0:00:06]} 23. h4 {[%emt 0:01:11]} Rec8 {[%emt 0:01:01]} 24. axb5 {[%emt 0:02:14]} Qxb5 {[%emt 0:00:57]} 25. Rxa8 {[%emt 0:00:07]} Rxa8 {[%emt 0:00:02]} 26. b3 {[%emt 0:00:42]} Nb4 {[%emt 0:00:43]} 27. Bb1 {[%emt 0:00:03]} Rc8 {[%emt 0:00:15]} 28. Bg5 {[%emt 0:00:16]} Qb6 {[%emt 0:00:59]} 29. Nf1 {[%emt 0:00:32]} Kf8 {[%emt 0:00:42]} 30. Nd2 {[%emt 0:00:11]} d5 {[%emt 0:01:03]} 31. exd5 {[%emt 0:00:06]} Bc5 {[%emt 0:00:59]} 32. Qf3 {[%emt 0:00:06]} Nbxd5 {[%emt 0:00:03]} 33. Nc4 {[%emt 0:00:09]} Qb4 {[%emt 0:00:53]} 34. Bd2 {[%emt 0:00:12]} Qb8 {[%emt 0:00:21]} 35. Nxe5 {[%emt 0:00:07]} Bb4 {[%emt 0:00:10]} 36. Qd3 {[%emt 0:02:04]} Bxd2 {[%emt 0:00:12]} 37. Qxd2 {[%emt 0:00:04]} Qxb3 {[%emt 0:00:11]} 38. Ba2 {[%emt 0:00:05]} Qc2 {[%emt 0:00:36]} 39. Qxc2 {[%emt 0:00:41]} Rxc2 {[%emt 0:00:02]} 40. Bxd5 {[%emt 0:00:02]} Nxd5 {[%emt 0:00:02]} 41. Nd7+ {[%emt 0:00:02]} Kg8 {[%emt 0:00:03]} 42. Re8+ {[%emt 0:00:03]} Kh7 {[%emt 0:00:02]} 43. g3 {[%emt 0:01:06]} Nf6 {[%emt 0:00:18]} 44. Nf8+ {[%emt 0:00:08]} Kh6 {[%emt 0:00:02]} 45. Re7 {[%emt 0:00:02]} g5 {[%emt 0:00:25]} 46. hxg5+ {[%emt 0:00:02]} Kxg5 {[%emt 0:00:02]} 47. Rxf7 {[%emt 0:00:03]} Kh6 {[%emt 0:00:31]} 48. Ne6 {[%emt 0:00:02]} Ng4 {[%emt 0:00:08]} 49. Kg2 {[%emt 0:00:37]} g6 {[%emt 0:00:03]} 50. Rf4 {[%emt 0:00:03]} Kh5 {[%emt 0:00:05]} 51. Rf8 {[%emt 0:00:08]} g5 {[%emt 0:00:05]} 52. Nd4 {[%emt 0:00:13]} Rb2 {[%emt 0:00:03]} 53. Nc6 {[%emt 0:00:09]} Kg6 {[%emt 0:00:04]} 54. Ne7+ {[%emt 0:00:04]} Kg7 {[%emt 0:00:02]} 55. Rf3 {[%emt 0:00:02]} Re2 {[%emt 0:00:04]} 56. Nf5+ {[%emt 0:00:02]} Kg6 {[%emt 0:00:03]} 57. Nd4 {[%emt 0:00:03]} Rd2 {[%emt 0:00:02]} 58. Ne6 {[%emt 0:00:03]} Re2 {[%emt 0:00:04]} 59. Nc5 {[%emt 0:00:03]} Rc2 {[%emt 0:00:05]} 60. Nd3 {[%emt 0:00:02]} Rd2 {[%emt 0:00:02]} 61. Nb4 {[%emt 0:00:07]} Rb2 {[%emt 0:00:02]} 62. Nd5 {[%emt 0:00:02]} Re2 {[%emt 0:00:09]} 63. Nc3 {[%emt 0:00:05]} Rc2 {[%emt 0:00:03]} 64. Ne4 {[%emt 0:00:05]} Re2 {[%emt 0:00:03]} 65. Nc5 {[%emt 0:00:03]} Rc2 {[%emt 0:00:07]} 66. Nd3 {[%emt 0:00:05]} Rd2 {[%emt 0:00:06]} 67. Nb4 {[%emt 0:00:19]} Ne5 {[%emt 0:00:14]} 68. Rf8 {[%emt 0:00:06]} Ng4 {[%emt 0:00:03]} 69. Nc6 {[%emt 0:00:03]} Kg7 {[%emt 0:00:09]} 70. Rf5 {[%emt 0:00:03]} Ne3+ {[%emt 0:00:04]} 0-1

[Event "European Online Club-ch-A 2021"]
[Site "Online"]
[Date "2021.03.27"]
[Round "5.7"]
[White "Kovacs, Gabor"]
[Black "Timofeev, Artyom"]
[Result "1/2-1/2"]
[ECO "D78"]
[WhiteElo "2455"]
[BlackElo "2594"]
[Annotator "ChessBase"]
[PlyCount "31"]
[EventDate "2021.03.27"]
[EventType "team-tourn"]
[EventCountry "NET"]
[SourceTitle "playchess.com"]
[Source "ChessBase"]
[SourceQuality "1"]
[TimeControl "900+5"]

1. d4 {[%emt 0:00:00]} Nf6 {[%emt 0:00:15]} 2. Nf3 {[%emt 0:00:17]} g6 {[%emt 0:00:06]} 3. g3 {[%emt 0:00:09]} Bg7 {[%emt 0:00:07]} 4. Bg2 {[%emt 0:00:02]} d5 {[%emt 0:00:03]} 5. O-O {[%emt 0:00:03]} O-O {[%emt 0:00:02]} 6. c4 {[%emt 0:00:09]} dxc4 {[%emt 0:00:04]} 7. Na3 {[%emt 0:00:05]} c6 {[%emt 0:00:51]} 8. Nxc4 {[%emt 0:00:10]} Be6 {[%emt 0:00:03]} 9. Qc2 {[%emt 0:00:36]} Qc8 {[%emt 0:00:44]} 10. Bd2 {[%emt 0:01:23]} Bd5 {[%emt 0:00:16]} 11. Rac1 {[%emt 0:00:50]} Nbd7 {[%emt 0:00:11]} 12. Rfe1 {[%emt 0:00:36]} Be4 {[%emt 0:00:05]} 13. Qb3 {[%emt 0:00:07]} Bd5 {[%emt 0:00:17]} 14. Qc2 {[%emt 0:00:03]} Be4 {[%emt 0:00:09]} 15. Qb3 {[%emt 0:00:02]} Bd5 {[%emt 0:00:07]} 16. Qc2 {[%emt 0:00:03]} 1/2-1/2